[Event "Early-Titled-Tuesday-Blitz-January-16-2024"]
[Site "Chess.com"]
[Date "2024.01.16"]
[Round "6"]
[White "artooon"]
[Black "AlbusSevresPotter"]
[Result "1-0"]
[WhiteElo "2971"]
[BlackElo "2580"]
[TimeControl "180+1"]
[EndTime "9:10:06 PST"]
[Termination "artooon won on time"]

1. e4 {[%clk 0:03:00.9]} 1... c5 {[%clk 0:02:59.7]} 2. Nf3 {[%clk 0:03:01.1]}
2... d6 {[%clk 0:03:00]} 3. d4 {[%clk 0:03:01.2]} 3... cxd4 {[%clk 0:03:00.9]}
4. Nxd4 {[%clk 0:03:02]} 4... Nf6 {[%clk 0:03:00.5]} 5. Nc3 {[%clk 0:03:02.6]}
5... a6 {[%clk 0:03:00.9]} 6. Bd3 {[%clk 0:03:02.8]} 6... e5 {[%clk 0:02:58.7]}
7. Nde2 {[%clk 0:03:03.3]} 7... Be7 {[%clk 0:02:59]} 8. O-O {[%clk 0:03:02.8]}
8... Be6 {[%clk 0:02:59.5]} 9. Ng3 {[%clk 0:03:02.5]} 9... Nbd7 {[%clk
0:02:55.7]} 10. f4 {[%clk 0:02:56.7]} 10... Qc7 {[%clk 0:02:52]} 11. Kh1 {[%clk
0:02:55.2]} 11... O-O {[%clk 0:02:51.5]} 12. Qe2 {[%clk 0:02:39.8]} 12... Rac8
{[%clk 0:02:51.1]} 13. fxe5 {[%clk 0:02:36.9]} 13... Nxe5 {[%clk 0:02:46.5]} 14.
Bf4 {[%clk 0:02:36.4]} 14... Ng6 {[%clk 0:02:28.1]} 15. Be3 {[%clk 0:02:31.7]}
15... Ng4 {[%clk 0:02:04.4]} 16. Bd4 {[%clk 0:02:30.5]} 16... N4e5 {[%clk
0:01:28.5]} 17. Nf5 {[%clk 0:02:28.3]} 17... Rfe8 {[%clk 0:01:25]} 18. Qf2
{[%clk 0:02:19.4]} 18... Rf8 {[%clk 0:01:25]} 19. a4 {[%clk 0:02:19.3]} 19...
Rfe8 {[%clk 0:01:13.8]} 20. a5 {[%clk 0:02:14.1]} 20... Bf8 {[%clk 0:01:13.8]}
21. Na4 {[%clk 0:02:13.7]} 21... d5 {[%clk 0:01:04.9]} 22. exd5 {[%clk
0:02:07.5]} 22... Bxd5 {[%clk 0:00:40]} 23. Nb6 {[%clk 0:02:06.7]} 23... Rcd8
{[%clk 0:00:40.2]} 24. Nxd5 {[%clk 0:01:55.9]} 24... Rxd5 {[%clk 0:00:41.1]} 25.
Qg3 {[%clk 0:01:54.5]} 25... Qd7 {[%clk 0:00:34.8]} 26. c3 {[%clk 0:01:41.3]}
26... Nc6 {[%clk 0:00:20.4]} 27. Qf2 {[%clk 0:01:30.1]} 27... Nge5 {[%clk
0:00:15.3]} 28. Be4 {[%clk 0:01:25.2]} 28... Rb5 {[%clk 0:00:15.6]} 29. Bb6
{[%clk 0:01:15.4]} 29... Nc4 {[%clk 0:00:11.1]} 30. Rad1 {[%clk 0:01:11.8]}
30... Qe6 {[%clk 0:00:10.1]} 31. Bd3 {[%clk 0:01:08]} 31... Rxb2 {[%clk
0:00:06.1]} 32. Qh4 {[%clk 0:00:54.5]} 32... Nxb6 {[%clk 0:00:06.3]} 33. Ne7+
{[%clk 0:00:52.9]} 1-0

[Event "Early-Titled-Tuesday-Blitz-January-16-2024"]
[Site "Chess.com"]
[Date "2024.01.16"]
[Round "6"]
[White "Schachmalanders"]
[Black "LoScecco"]
[Result "1-0"]
[WhiteElo "2464"]
[BlackElo "2222"]
[TimeControl "180+1"]
[EndTime "9:10:06 PST"]
[Termination "Schachmalanders won on time"]

1. e4 {[%clk 0:03:00.9]} 1... c5 {[%clk 0:02:59.4]} 2. d4 {[%clk 0:02:58.1]}
2... cxd4 {[%clk 0:02:58.6]} 3. c3 {[%clk 0:02:58.7]} 3... dxc3 {[%clk
0:02:58.2]} 4. Nxc3 {[%clk 0:02:59.1]} 4... Nc6 {[%clk 0:02:58.4]} 5. Bc4 {[%clk
0:02:59.3]} 5... d6 {[%clk 0:02:57.1]} 6. Nf3 {[%clk 0:02:58.3]} 6... a6 {[%clk
0:02:57.3]} 7. O-O {[%clk 0:02:57.1]} 7... Nf6 {[%clk 0:02:56.9]} 8. Qe2 {[%clk
0:02:56.9]} 8... Bg4 {[%clk 0:02:54.8]} 9. Rd1 {[%clk 0:02:55.9]} 9... e6 {[%clk
0:02:52.6]} 10. Bf4 {[%clk 0:02:50.5]} 10... Nh5 {[%clk 0:02:50.9]} 11. Bxd6
{[%clk 0:02:45.6]} 11... Bxd6 {[%clk 0:02:47.1]} 12. e5 {[%clk 0:02:46.2]} 12...
Nxe5 {[%clk 0:02:41.4]} 13. Qxe5 {[%clk 0:02:38]} 13... Bxe5 {[%clk 0:02:33.4]}
14. Rxd8+ {[%clk 0:02:38.1]} 14... Rxd8 {[%clk 0:02:33.3]} 15. Nxe5 {[%clk
0:02:39]} 15... Nf6 {[%clk 0:02:23.1]} 16. Re1 {[%clk 0:02:18.5]} 16... O-O
{[%clk 0:02:22.4]} 17. h3 {[%clk 0:02:19.1]} 17... Bf5 {[%clk 0:02:20.2]} 18.
Bb3 {[%clk 0:02:17]} 18... Rd2 {[%clk 0:02:08.5]} 19. g4 {[%clk 0:02:15.6]}
19... Bg6 {[%clk 0:02:05.4]} 20. h4 {[%clk 0:02:11.6]} 20... Bd3 {[%clk
0:01:14.6]} 21. g5 {[%clk 0:01:49.3]} 21... Nh5 {[%clk 0:01:09.6]} 22. Nxf7
{[%clk 0:01:34.2]} 22... Kxf7 {[%clk 0:00:58.5]} 23. Rxe6 {[%clk 0:01:33.9]}
23... Rd8 {[%clk 0:00:26.9]} 24. Re2+ {[%clk 0:01:31.6]} 24... Kf8 {[%clk
0:00:20.3]} 25. Rxd2 {[%clk 0:01:31.6]} 25... Ke7 {[%clk 0:00:19.8]} 26. Nd5+
{[%clk 0:01:30.2]} 26... Rxd5 {[%clk 0:00:18]} 27. Bxd5 {[%clk 0:01:30.4]} 27...
Bb5 {[%clk 0:00:15.6]} 28. Bxb7 {[%clk 0:01:27.8]} 28... Nf4 {[%clk 0:00:16]}
29. Kh2 {[%clk 0:01:25.5]} 29... h6 {[%clk 0:00:14.9]} 30. Be4 {[%clk
0:01:20.7]} 30... hxg5 {[%clk 0:00:14.4]} 31. hxg5 {[%clk 0:01:21.6]} 31... Ne6
{[%clk 0:00:13.6]} 32. g6 {[%clk 0:01:18.6]} 32... Kf6 {[%clk 0:00:13.4]} 33.
Rd6 {[%clk 0:01:17.4]} 33... Ke5 {[%clk 0:00:12.7]} 34. Rxe6+ {[%clk 0:01:14]}
34... Kxe6 {[%clk 0:00:12.9]} 35. Kg3 {[%clk 0:01:14.2]} 35... Kf6 {[%clk
0:00:11.8]} 36. Kf4 {[%clk 0:01:13.6]} 36... Bc4 {[%clk 0:00:11.8]} 37. a3
{[%clk 0:01:12.9]} 37... Bb3 {[%clk 0:00:10.9]} 38. Ke3 {[%clk 0:01:13.2]} 38...
a5 {[%clk 0:00:11.1]} 39. Kd4 {[%clk 0:01:13.6]} 39... Bd1 {[%clk 0:00:09.2]}
40. Kc5 {[%clk 0:01:13.4]} 40... a4 {[%clk 0:00:08.4]} 41. Kb4 {[%clk
0:01:13.7]} 41... Ke5 {[%clk 0:00:07.9]} 42. Bc6 {[%clk 0:01:13.7]} 42... Bc2
{[%clk 0:00:03.7]} 43. Bxa4 {[%clk 0:01:13.8]} 43... Bxg6 {[%clk 0:00:04.2]} 44.
Bc6 {[%clk 0:01:13.3]} 44... Kd4 {[%clk 0:00:03.4]} 45. a4 {[%clk 0:01:13.5]}
45... Bd3 {[%clk 0:00:02.8]} 46. a5 {[%clk 0:01:14]} 46... g5 {[%clk 0:00:02.8]}
47. Bb5 {[%clk 0:01:13.8]} 1-0

[Event "Early-Titled-Tuesday-Blitz-January-16-2024"]
[Site "Chess.com"]
[Date "2024.01.16"]
[Round "6"]
[White "Yushko_Olga"]
[Black "kai_nov"]
[Result "1-0"]
[WhiteElo "2127"]
[BlackElo "2317"]
[TimeControl "180+1"]
[EndTime "9:10:07 PST"]
[Termination "Yushko_Olga won on time"]

1. d4 {[%clk 0:02:58.6]} 1... Nf6 {[%clk 0:02:59.2]} 2. c4 {[%clk 0:02:59.3]}
2... e6 {[%clk 0:02:59.1]} 3. Nc3 {[%clk 0:02:59.2]} 3... d5 {[%clk 0:02:58.1]}
4. cxd5 {[%clk 0:02:58.3]} 4... exd5 {[%clk 0:02:57.3]} 5. Bg5 {[%clk
0:02:57.3]} 5... Be7 {[%clk 0:02:54.1]} 6. e3 {[%clk 0:02:57.3]} 6... c6 {[%clk
0:02:52.3]} 7. Bd3 {[%clk 0:02:57.3]} 7... h6 {[%clk 0:02:46.5]} 8. Bh4 {[%clk
0:02:57]} 8... O-O {[%clk 0:02:46]} 9. Qc2 {[%clk 0:02:57.2]} 9... Be6 {[%clk
0:02:43.6]} 10. Nge2 {[%clk 0:02:56.9]} 10... Nbd7 {[%clk 0:02:43.2]} 11. O-O
{[%clk 0:02:56.9]} 11... b5 {[%clk 0:02:37.3]} 12. Nf4 {[%clk 0:02:56.3]} 12...
b4 {[%clk 0:02:26.3]} 13. Na4 {[%clk 0:02:56]} 13... Rc8 {[%clk 0:02:14]} 14.
Rac1 {[%clk 0:02:49.2]} 14... Nb6 {[%clk 0:02:11.9]} 15. Nxe6 {[%clk 0:02:42.5]}
15... fxe6 {[%clk 0:02:10.4]} 16. Nc5 {[%clk 0:02:43.3]} 16... Bxc5 {[%clk
0:02:02.2]} 17. dxc5 {[%clk 0:02:39.7]} 17... Nbd7 {[%clk 0:01:59.7]} 18. e4
{[%clk 0:02:33.6]} 18... Ne5 {[%clk 0:01:42.5]} 19. exd5 {[%clk 0:02:29.5]}
19... Nxd3 {[%clk 0:01:40.2]} 20. Qxd3 {[%clk 0:02:27.4]} 20... Qxd5 {[%clk
0:01:39.4]} 21. Qe2 {[%clk 0:02:15.9]} 21... e5 {[%clk 0:01:31.3]} 22. Rfe1
{[%clk 0:02:13]} 22... Rce8 {[%clk 0:01:26.9]} 23. b3 {[%clk 0:02:09.6]} 23...
e4 {[%clk 0:01:11.5]} 24. Rc4 {[%clk 0:02:07.1]} 24... g5 {[%clk 0:01:01.3]} 25.
Bg3 {[%clk 0:02:03.3]} 25... a5 {[%clk 0:00:57.9]} 26. Rd1 {[%clk 0:02:02]}
26... Qf5 {[%clk 0:00:52.9]} 27. Rd6 {[%clk 0:01:56.5]} 27... e3 {[%clk
0:00:35.8]} 28. fxe3 {[%clk 0:01:56.4]} 28... Nd5 {[%clk 0:00:17.8]} 29. e4
{[%clk 0:01:26.7]} 29... Nf4 {[%clk 0:00:15.9]} 30. Bxf4 {[%clk 0:01:26.2]}
30... Qxf4 {[%clk 0:00:15.6]} 31. g3 {[%clk 0:01:22.5]} 31... Qe5 {[%clk
0:00:14.5]} 32. Rxh6 {[%clk 0:01:17.4]} 32... Qa1+ {[%clk 0:00:12.7]} 33. Kg2
{[%clk 0:01:17.7]} 33... Rd8 {[%clk 0:00:08.3]} 34. Rg6+ {[%clk 0:01:17.5]}
34... Kf7 {[%clk 0:00:07.1]} 35. Qh5 {[%clk 0:01:14.8]} 35... Rd2+ {[%clk
0:00:06.5]} 36. Kh3 {[%clk 0:01:12.8]} 36... Qf1+ {[%clk 0:00:06.7]} 37. Kg4
{[%clk 0:01:13.1]} 37... Qe2+ {[%clk 0:00:04.9]} 38. Kf5 {[%clk 0:01:04.7]}
38... Qf2+ {[%clk 0:00:03]} 39. Ke5 {[%clk 0:01:04]} 1-0

[Event "Early-Titled-Tuesday-Blitz-January-16-2024"]
[Site "Chess.com"]
[Date "2024.01.16"]
[Round "6"]
[White "nickmatta"]
[Black "BursaBBSatranc"]
[Result "0-1"]
[WhiteElo "2575"]
[BlackElo "2720"]
[TimeControl "180+1"]
[EndTime "9:10:08 PST"]
[Termination "BursaBBSatranc won by resignation"]

1. Nf3 {[%clk 0:03:00.9]} 1... d5 {[%clk 0:03:00]} 2. g3 {[%clk 0:03:01.5]} 2...
Nf6 {[%clk 0:03:00.2]} 3. Bg2 {[%clk 0:03:02.1]} 3... c6 {[%clk 0:03:01.1]} 4.
O-O {[%clk 0:03:02.4]} 4... Bf5 {[%clk 0:03:00.6]} 5. c4 {[%clk 0:03:02.7]} 5...
e6 {[%clk 0:03:00.9]} 6. Qb3 {[%clk 0:03:00]} 6... Qb6 {[%clk 0:03:00.6]} 7. d3
{[%clk 0:03:00.7]} 7... Nbd7 {[%clk 0:02:54.3]} 8. Be3 {[%clk 0:03:00.7]} 8...
Qxb3 {[%clk 0:02:47.7]} 9. axb3 {[%clk 0:03:01.6]} 9... a6 {[%clk 0:02:47.9]}
10. Nh4 {[%clk 0:02:56.2]} 10... Bg4 {[%clk 0:02:45.8]} 11. h3 {[%clk
0:02:56.6]} 11... Bxe2 {[%clk 0:02:44.6]} 12. Rc1 {[%clk 0:02:54]} 12... Bxd3
{[%clk 0:02:40.4]} 13. Nc3 {[%clk 0:02:51.2]} 13... Bd6 {[%clk 0:02:35.8]} 14.
Rd1 {[%clk 0:02:42.5]} 14... Bc2 {[%clk 0:02:30]} 15. Rd2 {[%clk 0:02:33.2]}
15... Bxb3 {[%clk 0:02:29.9]} 16. cxd5 {[%clk 0:02:24.2]} 16... cxd5 {[%clk
0:02:29.6]} 17. Nf3 {[%clk 0:02:24.4]} 17... O-O {[%clk 0:02:26.7]} 18. Nd4
{[%clk 0:02:25.1]} 18... Bc4 {[%clk 0:02:23.1]} 19. b3 {[%clk 0:02:25.7]} 19...
Bb4 {[%clk 0:02:16]} 20. Rc1 {[%clk 0:02:25.7]} 20... Bxc3 {[%clk 0:02:15.1]}
21. Rxc3 {[%clk 0:02:25.3]} 21... Bb5 {[%clk 0:02:13.3]} 22. Rc7 {[%clk
0:02:23.8]} 22... Rfc8 {[%clk 0:01:54.2]} 23. Rxb7 {[%clk 0:02:20.6]} 23... Rab8
{[%clk 0:01:53.6]} 24. Ra7 {[%clk 0:02:19.1]} 24... Ra8 {[%clk 0:01:51.6]} 25.
Rb7 {[%clk 0:02:17.1]} 25... Rcb8 {[%clk 0:01:52.3]} 26. Rc7 {[%clk 0:02:17.1]}
26... h6 {[%clk 0:01:41]} 27. g4 {[%clk 0:02:07.5]} 27... Rc8 {[%clk 0:01:40.3]}
28. Rb7 {[%clk 0:02:07.1]} 28... Rab8 {[%clk 0:01:40.8]} 29. Ra7 {[%clk
0:02:07.6]} 29... Nc5 {[%clk 0:01:24.1]} 30. b4 {[%clk 0:01:57]} 30... Nce4
{[%clk 0:01:22.5]} 31. Ra2 {[%clk 0:01:52.6]} 31... Bc4 {[%clk 0:01:22.3]} 32.
Ra1 {[%clk 0:01:52.2]} 32... Rxb4 {[%clk 0:01:20]} 33. f3 {[%clk 0:01:50]} 33...
Nd6 {[%clk 0:01:12.9]} 34. Bf1 {[%clk 0:01:44.1]} 34... Bxf1 {[%clk 0:01:11.7]}
35. Kxf1 {[%clk 0:01:44.7]} 35... Nb5 {[%clk 0:01:03.7]} 36. Nxb5 {[%clk
0:01:40]} 36... axb5 {[%clk 0:01:04.6]} 37. Rb7 {[%clk 0:01:40.1]} 37... Rb3
{[%clk 0:01:01.2]} 38. Bd4 {[%clk 0:01:31]} 38... Rxf3+ {[%clk 0:00:59.1]} 39.
Kg2 {[%clk 0:01:31.7]} 39... Rf4 {[%clk 0:00:59]} 40. Be5 {[%clk 0:01:16.9]}
40... Re4 {[%clk 0:00:56.8]} 41. Bxf6 {[%clk 0:01:16.3]} 41... gxf6 {[%clk
0:00:57.7]} 42. Raa7 {[%clk 0:01:15.3]} 42... Rf8 {[%clk 0:00:58.1]} 43. Rxb5
{[%clk 0:01:15.6]} 43... h5 {[%clk 0:00:53.2]} 44. Kf3 {[%clk 0:01:06]} 44...
hxg4+ {[%clk 0:00:52.6]} 45. hxg4 {[%clk 0:01:06.9]} 45... Kg7 {[%clk
0:00:52.9]} 46. Rbb7 {[%clk 0:01:06.2]} 46... Kg6 {[%clk 0:00:52.3]} 47. Re7
{[%clk 0:01:04.3]} 47... Kg5 {[%clk 0:00:38.3]} 48. Rxf7 {[%clk 0:01:02.6]}
48... Rxf7 {[%clk 0:00:39.2]} 49. Rxf7 {[%clk 0:01:03]} 49... Rf4+ {[%clk
0:00:39.2]} 50. Ke3 {[%clk 0:01:02.7]} 50... Rxg4 {[%clk 0:00:38.2]} 51. Rg7+
{[%clk 0:01:01.8]} 51... Kf5 {[%clk 0:00:38.5]} 52. Rh7 {[%clk 0:01:01.8]} 52...
Rg3+ {[%clk 0:00:38.2]} 53. Kd4 {[%clk 0:01:01.8]} 53... e5+ {[%clk 0:00:35.2]}
54. Kxd5 {[%clk 0:01:02.7]} 54... Rd3+ {[%clk 0:00:35.5]} 55. Kc4 {[%clk
0:01:02.7]} 55... Rd8 {[%clk 0:00:35.8]} 56. Kc3 {[%clk 0:01:00]} 56... e4
{[%clk 0:00:35.9]} 57. Re7 {[%clk 0:00:59.6]} 57... Kf4 {[%clk 0:00:35.5]} 58.
Rd7 {[%clk 0:00:57]} 0-1

[Event "Early-Titled-Tuesday-Blitz-January-16-2024"]
[Site "Chess.com"]
[Date "2024.01.16"]
[Round "6"]
[White "Statham_01"]
[Black "DamianoLew95"]
[Result "1-0"]
[WhiteElo "2555"]
[BlackElo "2658"]
[TimeControl "180+1"]
[EndTime "9:10:08 PST"]
[Termination "Statham_01 won by checkmate"]

1. e4 {[%clk 0:03:00.9]} 1... c5 {[%clk 0:02:57]} 2. Nf3 {[%clk 0:03:01]} 2...
d6 {[%clk 0:02:56.1]} 3. d4 {[%clk 0:03:01.2]} 3... cxd4 {[%clk 0:02:57]} 4.
Nxd4 {[%clk 0:03:02.1]} 4... Nf6 {[%clk 0:02:57.3]} 5. Nc3 {[%clk 0:03:01.9]}
5... a6 {[%clk 0:02:57.9]} 6. a3 {[%clk 0:03:01.9]} 6... g6 {[%clk 0:02:52.5]}
7. Be3 {[%clk 0:03:00.3]} 7... Bg7 {[%clk 0:02:51.8]} 8. f3 {[%clk 0:03:00.4]}
8... e5 {[%clk 0:02:46.6]} 9. Nb3 {[%clk 0:02:56]} 9... Be6 {[%clk 0:02:46.7]}
10. Qd2 {[%clk 0:02:53.9]} 10... O-O {[%clk 0:02:41.3]} 11. O-O-O {[%clk
0:02:47.3]} 11... Ne8 {[%clk 0:02:25.7]} 12. h4 {[%clk 0:02:41.8]} 12... Nc6
{[%clk 0:02:21.3]} 13. h5 {[%clk 0:02:39.2]} 13... Bxb3 {[%clk 0:02:18.6]} 14.
cxb3 {[%clk 0:02:37.4]} 14... Nd4 {[%clk 0:02:19.2]} 15. Bc4 {[%clk 0:02:24.9]}
15... Rc8 {[%clk 0:02:11.2]} 16. Kb1 {[%clk 0:02:19]} 16... b5 {[%clk
0:01:54.5]} 17. Bd5 {[%clk 0:02:14.6]} 17... Nf6 {[%clk 0:01:11.3]} 18. hxg6
{[%clk 0:02:02.1]} 18... Nxd5 {[%clk 0:01:09.2]} 19. gxh7+ {[%clk 0:01:46.7]}
19... Kh8 {[%clk 0:01:08.9]} 20. Bxd4 {[%clk 0:01:38.2]} 20... exd4 {[%clk
0:00:44.3]} 21. Nxd5 {[%clk 0:01:33.5]} 21... Rc5 {[%clk 0:00:44.6]} 22. Rh5
{[%clk 0:01:18.1]} 22... Re8 {[%clk 0:00:35.9]} 23. Qf4 {[%clk 0:01:14.5]} 23...
d3 {[%clk 0:00:26.5]} 24. Rxd3 {[%clk 0:00:51]} 24... Qc8 {[%clk 0:00:23.5]} 25.
Rg5 {[%clk 0:00:40.3]} 25... Kxh7 {[%clk 0:00:04]} 26. Qh4+ {[%clk 0:00:33.9]}
26... Kg8 {[%clk 0:00:03.2]} 27. Rxg7+ {[%clk 0:00:30.2]} 27... Kxg7 {[%clk
0:00:04.1]} 28. Qg5+ {[%clk 0:00:27.2]} 28... Kf8 {[%clk 0:00:03.7]} 29. Qh6+
{[%clk 0:00:27.1]} 29... Kg8 {[%clk 0:00:04.3]} 30. Nf6# {[%clk 0:00:27.6]} 1-0

[Event "Early-Titled-Tuesday-Blitz-January-16-2024"]
[Site "Chess.com"]
[Date "2024.01.16"]
[Round "6"]
[White "Quattroporte300"]
[Black "Flawless_Fighter"]
[Result "0-1"]
[WhiteElo "2468"]
[BlackElo "2698"]
[TimeControl "180+1"]
[EndTime "9:10:08 PST"]
[Termination "Flawless_Fighter won on time"]

1. e4 {[%clk 0:03:00.9]} 1... c5 {[%clk 0:02:58.8]} 2. Nc3 {[%clk 0:03:00.3]}
2... Nc6 {[%clk 0:02:58.6]} 3. Bb5 {[%clk 0:02:59.7]} 3... a6 {[%clk 0:02:57.5]}
4. Bxc6 {[%clk 0:02:59.5]} 4... bxc6 {[%clk 0:02:57.3]} 5. d3 {[%clk 0:03:00]}
5... d6 {[%clk 0:02:55.7]} 6. f4 {[%clk 0:02:56.4]} 6... g6 {[%clk 0:02:54]} 7.
Nf3 {[%clk 0:02:56.6]} 7... Bg7 {[%clk 0:02:54.3]} 8. h3 {[%clk 0:02:44.2]} 8...
Nf6 {[%clk 0:02:54.2]} 9. Be3 {[%clk 0:02:42.2]} 9... O-O {[%clk 0:02:54.2]} 10.
Qd2 {[%clk 0:02:42]} 10... Rb8 {[%clk 0:02:51.2]} 11. O-O-O {[%clk 0:02:39]}
11... Qb6 {[%clk 0:02:49.5]} 12. b3 {[%clk 0:02:35.4]} 12... Qa5 {[%clk
0:02:48.6]} 13. Na4 {[%clk 0:02:14.8]} 13... Rb4 {[%clk 0:02:16.9]} 14. Rde1
{[%clk 0:01:17.1]} 14... c4 {[%clk 0:02:08.3]} 15. Bb6 {[%clk 0:00:55.8]} 15...
Qb5 {[%clk 0:02:07]} 16. dxc4 {[%clk 0:00:53.1]} 16... Rxc4 {[%clk 0:02:05.5]}
17. bxc4 {[%clk 0:00:51.4]} 17... Qxa4 {[%clk 0:02:04.9]} 18. Bd4 {[%clk
0:00:35.9]} 18... Qxc4 {[%clk 0:02:01.7]} 19. Qc3 {[%clk 0:00:23.9]} 19... Qxa2
{[%clk 0:01:57.4]} 20. Qb3 {[%clk 0:00:24.1]} 20... Qa5 {[%clk 0:01:48]} 21. Bc3
{[%clk 0:00:23.7]} 21... Qc7 {[%clk 0:01:38.8]} 22. e5 {[%clk 0:00:20.9]} 22...
Be6 {[%clk 0:01:36.1]} 23. Qa3 {[%clk 0:00:12.1]} 23... Nd5 {[%clk 0:01:20.3]}
24. Ba5 {[%clk 0:00:12.2]} 24... Qb7 {[%clk 0:01:17.5]} 25. Nd4 {[%clk 0:00:12]}
25... Nxf4 {[%clk 0:01:12.4]} 26. Nxe6 {[%clk 0:00:12.1]} 26... Nxe6 {[%clk
0:01:12.4]} 27. Bc3 {[%clk 0:00:10.3]} 27... d5 {[%clk 0:01:09.4]} 28. Qb3
{[%clk 0:00:07.7]} 28... Qc7 {[%clk 0:01:08.7]} 29. Kd2 {[%clk 0:00:07.6]} 29...
Rb8 {[%clk 0:01:09.1]} 30. Qa3 {[%clk 0:00:06.8]} 30... d4 {[%clk 0:01:08.4]}
31. Ba5 {[%clk 0:00:05.9]} 31... Qd7 {[%clk 0:01:08.6]} 32. Rb1 {[%clk
0:00:06.3]} 32... Rd8 {[%clk 0:01:08.7]} 33. Rb3 {[%clk 0:00:05.8]} 33... Rf8
{[%clk 0:01:04]} 34. Re1 {[%clk 0:00:05.8]} 34... Qd5 {[%clk 0:01:03.3]} 35. Rf3
{[%clk 0:00:05.3]} 35... Ng5 {[%clk 0:01:02]} 36. Rf2 {[%clk 0:00:02.6]} 36...
Ne4+ {[%clk 0:01:02.2]} 37. Rxe4 {[%clk 0:00:03.2]} 37... Qxe4 {[%clk
0:01:02.6]} 38. Bb4 {[%clk 0:00:02.1]} 38... Bh6+ {[%clk 0:01:00.6]} 39. Kd1
{[%clk 0:00:01.4]} 39... Qxe5 {[%clk 0:00:56.7]} 40. Qd3 {[%clk 0:00:01.8]}
40... Rb8 {[%clk 0:00:56.3]} 0-1

[Event "Early-Titled-Tuesday-Blitz-January-16-2024"]
[Site "Chess.com"]
[Date "2024.01.16"]
[Round "6"]
[White "CrushingKings"]
[Black "01Roman"]
[Result "1-0"]
[WhiteElo "2665"]
[BlackElo "2453"]
[TimeControl "180+1"]
[EndTime "9:10:09 PST"]
[Termination "CrushingKings won by resignation"]

1. Nf3 {[%clk 0:02:03.1]} 1... Nf6 {[%clk 0:02:54.6]} 2. g3 {[%clk 0:02:03.7]}
2... b6 {[%clk 0:02:52.8]} 3. Bg2 {[%clk 0:02:03.5]} 3... Bb7 {[%clk 0:02:53.4]}
4. O-O {[%clk 0:02:04.4]} 4... e6 {[%clk 0:02:53.2]} 5. c4 {[%clk 0:02:04.4]}
5... c5 {[%clk 0:02:52.8]} 6. b3 {[%clk 0:01:57.5]} 6... Be7 {[%clk 0:02:52]} 7.
Bb2 {[%clk 0:01:58]} 7... O-O {[%clk 0:02:51.3]} 8. d4 {[%clk 0:01:58.6]} 8...
cxd4 {[%clk 0:02:50.9]} 9. Qxd4 {[%clk 0:01:59.5]} 9... d6 {[%clk 0:02:37.4]}
10. Nc3 {[%clk 0:01:57.8]} 10... a6 {[%clk 0:02:37.4]} 11. Rfd1 {[%clk 0:01:56]}
11... Nbd7 {[%clk 0:02:36.6]} 12. Ba3 {[%clk 0:01:45.5]} 12... Qc7 {[%clk
0:02:35.5]} 13. Bxd6 {[%clk 0:01:44.5]} 13... Bxd6 {[%clk 0:02:34.7]} 14. Qxd6
{[%clk 0:01:44.7]} 14... Rac8 {[%clk 0:02:34.6]} 15. Rac1 {[%clk 0:01:12.6]}
15... Qxd6 {[%clk 0:02:23.7]} 16. Rxd6 {[%clk 0:01:13.5]} 16... b5 {[%clk
0:02:24.1]} 17. Ne5 {[%clk 0:00:56.9]} 17... Bxg2 {[%clk 0:02:19]} 18. Nxd7
{[%clk 0:00:56.8]} 18... Nxd7 {[%clk 0:02:12]} 19. Kxg2 {[%clk 0:00:46.7]} 19...
Ne5 {[%clk 0:02:02.9]} 20. cxb5 {[%clk 0:00:40.4]} 20... axb5 {[%clk 0:02:02.5]}
21. Rdd1 {[%clk 0:00:39.8]} 21... b4 {[%clk 0:01:59.5]} 22. Ne4 {[%clk
0:00:21.4]} 22... Rxc1 {[%clk 0:01:58.3]} 23. Rxc1 {[%clk 0:00:22.3]} 23... Ra8
{[%clk 0:01:57.7]} 24. Rc2 {[%clk 0:00:21.5]} 24... h6 {[%clk 0:01:55.2]} 25.
Nd6 {[%clk 0:00:19.3]} 25... Ra7 {[%clk 0:01:52.5]} 26. h3 {[%clk 0:00:18.9]}
26... Kf8 {[%clk 0:01:40]} 27. f4 {[%clk 0:00:17.8]} 27... Ng6 {[%clk
0:01:37.4]} 28. Nc4 {[%clk 0:00:17.4]} 28... Ne7 {[%clk 0:01:36]} 29. Kf3 {[%clk
0:00:15.7]} 29... Nd5 {[%clk 0:01:35.2]} 30. e4 {[%clk 0:00:15.9]} 30... Nc3
{[%clk 0:01:35.1]} 31. a4 {[%clk 0:00:09.6]} 31... bxa3 {[%clk 0:01:35.2]} 32.
Nxa3 {[%clk 0:00:08.3]} 32... Rxa3 {[%clk 0:01:31.2]} 33. Rxc3 {[%clk
0:00:08.6]} 33... g6 {[%clk 0:01:28.5]} 34. Ke3 {[%clk 0:00:08.9]} 34... h5
{[%clk 0:01:27.4]} 35. h4 {[%clk 0:00:08.1]} 35... Kg7 {[%clk 0:01:25.6]} 36.
Kd4 {[%clk 0:00:06.7]} 36... Ra2 {[%clk 0:01:22.7]} 37. b4 {[%clk 0:00:06.7]}
37... Rb2 {[%clk 0:01:20.7]} 38. Kc5 {[%clk 0:00:07]} 38... Kf6 {[%clk
0:01:18.1]} 39. b5 {[%clk 0:00:06.9]} 39... Ke7 {[%clk 0:01:17.2]} 40. Kc6
{[%clk 0:00:06.6]} 40... Rb4 {[%clk 0:01:14]} 41. b6 {[%clk 0:00:03.6]} 41...
Kd8 {[%clk 0:01:06.2]} 42. Kb7 {[%clk 0:00:01.3]} 1-0

[Event "Early-Titled-Tuesday-Blitz-January-16-2024"]
[Site "Chess.com"]
[Date "2024.01.16"]
[Round "6"]
[White "anasta10"]
[Black "NovozhilovSemen"]
[Result "0-1"]
[WhiteElo "2513"]
[BlackElo "2672"]
[TimeControl "180+1"]
[EndTime "9:10:11 PST"]
[Termination "NovozhilovSemen won on time"]

1. Nf3 {[%clk 0:02:53.9]} 1... Nf6 {[%clk 0:02:59.5]} 2. d4 {[%clk 0:02:53.8]}
2... e6 {[%clk 0:02:59.4]} 3. g3 {[%clk 0:02:54.1]} 3... c5 {[%clk 0:02:59.3]}
4. Bg2 {[%clk 0:02:54.3]} 4... cxd4 {[%clk 0:02:59.1]} 5. Nxd4 {[%clk
0:02:54.8]} 5... d5 {[%clk 0:02:59.4]} 6. O-O {[%clk 0:02:55.2]} 6... Nc6 {[%clk
0:02:59.4]} 7. c4 {[%clk 0:02:51.6]} 7... Bc5 {[%clk 0:02:53.2]} 8. Nb3 {[%clk
0:02:49.9]} 8... Bb6 {[%clk 0:02:50.7]} 9. cxd5 {[%clk 0:02:43.5]} 9... Nxd5
{[%clk 0:02:49.8]} 10. N1d2 {[%clk 0:02:20.3]} 10... O-O {[%clk 0:02:45.5]} 11.
Nc4 {[%clk 0:02:18.9]} 11... Bc7 {[%clk 0:02:44.1]} 12. a3 {[%clk 0:01:46.5]}
12... Qf6 {[%clk 0:02:25.8]} 13. Qc2 {[%clk 0:01:38.7]} 13... Rd8 {[%clk
0:02:21.9]} 14. Bd2 {[%clk 0:01:28.6]} 14... e5 {[%clk 0:02:16.6]} 15. Rad1
{[%clk 0:01:24.9]} 15... Be6 {[%clk 0:01:51.1]} 16. e3 {[%clk 0:01:16.7]} 16...
Rac8 {[%clk 0:01:37]} 17. Nc5 {[%clk 0:00:52]} 17... b5 {[%clk 0:01:34.9]} 18.
Nxe6 {[%clk 0:00:50.8]} 18... Qxe6 {[%clk 0:01:35.8]} 19. e4 {[%clk 0:00:50.9]}
19... Nf6 {[%clk 0:01:20.8]} 20. Ne3 {[%clk 0:00:50.4]} 20... Bb6 {[%clk
0:01:20.7]} 21. Qb1 {[%clk 0:00:48.3]} 21... Nd4 {[%clk 0:01:19]} 22. Rfe1
{[%clk 0:00:39.9]} 22... h5 {[%clk 0:01:12.2]} 23. Nd5 {[%clk 0:00:29.1]} 23...
Nxd5 {[%clk 0:00:50]} 24. exd5 {[%clk 0:00:29.3]} 24... Rxd5 {[%clk 0:00:50.9]}
25. Bxd5 {[%clk 0:00:09.7]} 25... Qxd5 {[%clk 0:00:51.8]} 26. Be3 {[%clk
0:00:01.9]} 26... Nf3+ {[%clk 0:00:44.9]} 27. Kh1 {[%clk 0:00:02.4]} 27... Bd4
{[%clk 0:00:29]} 28. Bxd4 {[%clk 0:00:02.4]} 28... Nxe1+ {[%clk 0:00:28.5]} 29.
f3 {[%clk 0:00:02.3]} 29... Qxf3+ {[%clk 0:00:28.6]} 0-1